bitfinex/quotes_SOLUSD_20250609
["timestamp","ask_amount","ask_price","bid_price","bid_amount"]
[1749491421365,26.05001216,156.4,156.36,18.64964886]
[1749491421561,19.65612307,156.39,156.36,18.64964886]
[1749491421769,19.65612307,156.38,156.36,18.64964886]
[1749491421974,4.7762597,156.41,156.36,18.64964886]
[1749491422175,19.65612307,156.38,156.36,18.64964886]
[1749491422487,4.7762597,156.39,156.36,18.64964886]
[1749491422643,19.65612307,156.39,156.36,18.64964886]
[1749491422847,4.77660679,156.41,156.38,18.64964886]
[1749491423055,19.65612307,156.41,156.38,18.64964886]
[1749491423270,19.65612307,156.39,156.34,36.55226924]
[1749491423476,19.65612307,156.38,156.35,18.64964886]
[1749491424476,19.65612307,156.37,156.35,18.64964886]
[1749491424975,26.05085139,156.38,156.35,18.64964886]
[1749491425773,19.65612307,156.37,156.35,18.64964886]
[1749491425974,19.65612307,156.36,156.34,10.5]
[1749491426150,19.65612307,156.35,156.34,10.5]
[1749491426355,19.65612307,156.35,156.31,18.64964886]
[1749491426568,19.65612307,156.34,156.31,18.64964886]
[1749491426881,19.65612307,156.35,156.31,25.04709358]
[1749491427178,19.65612307,156.35,156.31,18.64964886]
[1749491427686,4.77929893,156.36,156.33,18.64964886]
[1749491427884,55.68441221,156.41,156.32,19.65612307]
[1749491427885,4.77850278,156.39,156.35,0.14216157]
[1749491428185,26.0,156.39,156.35,19.79828464]
[1749491428478,26.0,156.39,156.37,18.64964886]
[1749491429101,45.65612307,156.39,156.37,18.64964886]
[1749491429379,19.65612307,156.4,156.37,18.64964886]
[1749491430976,26.05016199,156.4,156.37,18.64964886]
[1749491431686,19.65612307,156.4,156.37,18.64964886]
[1749491432359,26.04970773,156.41,156.37,18.64964886]
[1749491432560,4.78202236,156.4,156.37,18.64964886]
[1749491432777,45.65612307,156.41,156.37,25.04472523]
[1749491432981,4.78255901,156.4,156.37,25.04472523]
[1749491433182,45.65612307,156.41,156.37,25.04472523]
[1749491433357,4.78259801,156.4,156.37,25.04472523]
[1749491433557,52.04962597,156.41,156.37,18.64964886]
[1749491433792,24.43926806,156.4,156.37,18.64964886]
[1749491433973,19.65612307,156.4,156.37,18.64964886]
[1749491434290,4.78330994,156.39,156.37,18.64964886]
[1749491434485,19.65612307,156.4,156.37,18.64964886]
[1749491435590,4.7840103,156.39,156.37,18.64964886]
[1749491435882,19.65612307,156.4,156.37,18.64964886]
[1749491436382,4.78404981,156.39,156.37,18.64964886]
[1749491436683,19.65612307,156.4,156.37,18.64964886]
[1749491438271,4.78396091,156.39,156.37,18.64964886]
[1749491438466,19.65612307,156.4,156.37,18.64964886]
[1749491438670,4.78410823,156.39,156.37,18.64964886]
[1749491438866,4.784263,156.38,156.37,18.64964886]
[1749491439086,26.05011802,156.4,156.37,18.64964886]
[1749491439291,4.78399128,156.39,156.37,18.64964886]
[1749491439496,26.05011802,156.4,156.37,18.64964886]
[1749491439696,4.7840113,156.39,156.37,18.64964886]
[1749491439870,26.05011802,156.4,156.37,18.64964886]
[1749491440196,4.78401242,156.39,156.37,18.64964886]
[1749491440383,26.05011802,156.4,156.37,18.64964886]
[1749491440588,4.78406269,156.39,156.37,18.64964886]
[1749491440805,26.05011802,156.4,156.37,18.64964886]
[1749491441100,4.78406269,156.39,156.37,18.64964886]
[1749491441298,26.05011802,156.4,156.37,18.64964886]
[1749491441501,4.78413988,156.39,156.37,18.64964886]
[1749491441671,26.05011802,156.4,156.37,18.64964886]
[1749491442011,4.78425466,156.39,156.37,18.64964886]
[1749491442199,26.05011802,156.4,156.37,18.64964886]
[1749491442493,4.7840864,156.39,156.37,18.64964886]
[1749491442715,26.05011802,156.4,156.37,18.64964886]
[1749491442870,4.78411835,156.39,156.37,18.64964886]
[1749491443069,26.05011802,156.4,156.37,18.64964886]
[1749491443303,4.78413067,156.39,156.37,18.64964886]
[1749491443502,26.05011802,156.4,156.37,18.64964886]
[1749491443670,4.78424524,156.39,156.37,18.64964886]
[1749491443869,26.05011802,156.4,156.37,18.64964886]
[1749491444169,4.78439961,156.39,156.37,18.64964886]
[1749491444369,26.05011802,156.4,156.37,18.64964886]
[1749491444570,4.78446565,156.39,156.37,18.64964886]
[1749491444864,26.05011802,156.4,156.37,18.64964886]
[1749491445093,4.78512125,156.39,156.37,18.64964886]
[1749491445267,26.05011802,156.4,156.37,18.64964886]
[1749491445470,4.78496685,156.39,156.37,18.64964886]
[1749491445671,31.96743437,156.43,156.37,38.30577193]
[1749491445984,4.78498683,156.42,156.41,38.30577193]
[1749491446175,4.78498683,156.42,156.41,19.65612307]
[1749491446376,12.35928922,156.45,156.41,19.65612307]
[1749491446377,26.04797792,156.45,156.42,18.64964886]
[1749491446686,31.96743437,156.46,156.42,18.64964886]
[1749491446687,4.78334146,156.44,156.42,18.64964886]
[1749491446873,52.04771153,156.46,156.42,18.64964886]
[1749491447196,4.78395808,156.45,156.43,18.64964886]
[1749491447375,26.0,156.46,156.43,18.64964886]
[1749491447576,4.78204203,156.45,156.43,18.64964886]
[1749491447805,26.04685977,156.48,156.44,18.64964886]
[1749491447968,4.78181532,156.47,156.44,18.64964886]
[1749491448169,4.78181532,156.46,156.44,18.64964886]
[1749491448386,26.04685977,156.48,156.44,18.64964886]
[1749491448589,4.77841801,156.47,156.44,18.64964886]
[1749491448777,26.04685977,156.48,156.44,18.64964886]
[1749491448979,4.77841647,156.47,156.44,18.64964886]
[1749491449188,4.77850187,156.46,156.44,44.69793822]
[1749491449388,32.39030646,156.49,156.44,38.30577193]
[1749491449703,32.39030646,156.49,156.46,18.64964886]
[1749491449704,4.77630819,156.48,156.46,18.64964886]
[1749491450002,32.39030646,156.49,156.46,18.64964886]
[1749491450003,4.77630819,156.47,156.46,18.64964886]
[1749491450385,52.04642953,156.49,156.46,18.64964886]
[1749491450595,4.77594098,156.48,156.46,18.64964886]
[1749491450775,52.04642953,156.49,156.46,18.64964886]
[1749491451096,24.42979792,156.48,156.45,18.64964886]
[1749491451405,4.77367485,156.47,156.45,18.64964886]
[1749491451644,24.42821748,156.48,156.45,18.64964886]
[1749491451791,26.04676743,156.48,156.45,18.64964886]
[1749491453105,30.81702668,156.48,156.45,18.64964886]
[1749491453603,30.81702668,156.48,156.44,18.64964886]
[1749491453604,19.65612307,156.47,156.44,18.64964886]
[1749491453804,19.65612307,156.46,156.44,18.64964886]
[1749491454099,6.39064436,156.48,156.44,18.64964886]
[1749491454100,19.65612307,156.45,156.44,18.64964886]
[1749491454680,24.42519832,156.45,156.42,10.44]
[1749491454992,19.65612307,156.43,156.42,10.44]
[1749491455188,24.42540031,156.43,156.38,10.44]
[1749491455395,19.65612307,156.4,156.38,10.44]
[1749491455602,19.65612307,156.39,156.38,10.44]
[1749491457094,19.65612307,156.39,156.35,18.64964886]
[1749491457293,19.65612307,156.36,156.35,18.64964886]
[1749491458309,26.0513403,156.37,156.35,18.64964886]
[1749491459989,19.65612307,156.36,156.35,18.64964886]
[1749491460186,19.65612307,156.36,156.34,10.44]
[1749491460414,19.65612307,156.35,156.34,29.08964886]
[1749491460989,19.65612307,156.35,156.34,10.44]
[1749491461212,19.65612307,156.35,156.3,68.70964886]
[1749491461419,19.65612307,156.33,156.3,68.70964886]
[1749491461624,26.05284988,156.33,156.3,29.08964886]
[1749491461833,19.65612307,156.31,156.3,29.08964886]
[1749491463136,19.65612307,156.31,156.3,10.44]
[1749491463517,26.05366641,156.31,156.3,10.44]
[1749491464719,6.39754334,156.31,156.3,10.44]
[1749491464918,26.0,156.35,156.3,10.44]
[1749491464919,19.65612307,156.33,156.3,10.44]
[1749491465235,19.65612307,156.32,156.3,10.44]
[1749491466511,19.65612307,156.33,156.3,10.44]
[1749491466711,26.05253776,156.34,156.31,18.64964886]
[1749491467036,26.05205921,156.35,156.32,18.64964886]
[1749491467735,19.65612307,156.33,156.31,39.64]
[1749491469244,32.39559469,156.36,156.32,38.30577193]
[1749491469421,19.65612307,156.38,156.34,18.64964886]
[1749491469628,26.05096114,156.38,156.35,18.64964886]
[1749491469837,52.05096114,156.38,156.35,18.64964886]
[1749491470227,52.05096114,156.38,156.33,38.30577193]
[1749491471825,32.39483807,156.38,156.33,44.70243471]
[1749491472119,52.05096114,156.38,156.33,44.70243471]
[1749491472308,52.05096114,156.38,156.33,38.30577193]
[1749491474036,19.65612307,156.37,156.33,38.30577193]
[1749491474442,52.05096114,156.38,156.33,38.30577193]
[1749491474623,52.05096114,156.38,156.35,18.64964886]
[1749491474825,19.65612307,156.37,156.33,19.94044621]
[1749491475124,19.65612307,156.37,156.27,7.6472]
[1749491475125,19.65612307,156.34,156.27,7.6472]
[1749491475327,19.65612307,156.32,156.28,69.89612307]
[1749491475833,19.65612307,156.34,156.31,18.64964886]
[1749491476039,26.05260663,156.34,156.31,18.64964886]
[1749491476242,6.39648356,156.34,156.31,18.64964886]
[1749491476632,26.05260663,156.34,156.31,18.64964886]
[1749491477717,6.39648356,156.34,156.31,18.64964886]
[1749491478646,26.05260663,156.34,156.3,38.59009507]
[1749491479450,26.05260663,156.34,156.3,0.28432314]
[1749491479451,19.65612307,156.33,156.3,0.28432314]
[1749491479743,19.65612307,156.33,156.29,18.64964886]
[1749491479950,19.65612307,156.32,156.29,18.64964886]
[1749491480745,26.0532968,156.32,156.29,18.64964886]
[1749491482242,19.65612307,156.31,156.29,18.64964886]
[1749491482746,6.39795265,156.3,156.29,18.64964886]
[1749491483266,26.05407572,156.3,156.29,18.64964886]
[1749491483624,26.05407572,156.3,156.28,10.44]
[1749491483851,19.65612307,156.29,156.28,10.44]
[1749491484765,26.05448508,156.29,156.28,10.44]
[1749491485130,26.05448508,156.29,156.26,18.64964886]
[1749491485344,26.05448508,156.29,156.24,30.09612307]
[1749491485545,26.05448508,156.29,156.25,18.64964886]
[1749491485853,6.39836201,156.29,156.25,18.64964886]
[1749491486056,19.65612307,156.28,156.25,18.64964886]
[1749491486754,6.3991809,156.27,156.25,18.64964886]
[1749491487145,26.05530397,156.27,156.25,18.64964886]
[1749491488651,6.3991809,156.27,156.25,18.64964886]
[1749491490144,26.05530397,156.27,156.25,18.64964886]
[1749491492333,19.65612307,156.29,156.25,18.64964886]
[1749491492662,19.65612307,156.31,156.28,18.64964886]
[1749491493953,26.053893,156.31,156.28,18.64964886]
[1749491494850,6.39776993,156.31,156.28,18.64964886]
[1749491495032,26.053893,156.31,156.28,18.64964886]
[1749491495233,19.65612307,156.31,156.28,18.64964886]
[1749491495433,26.05326782,156.32,156.28,18.64964886]
[1749491496150,26.0,156.32,156.3,18.64964886]
[1749491496676,45.65612307,156.32,156.3,18.64964886]
[1749491497148,45.65612307,156.32,156.28,18.933972]
[1749491497536,52.05347267,156.32,156.28,18.933972]
[1749491497939,6.39631572,156.34,156.3,18.64964886]
[1749491498255,26.05243879,156.34,156.3,18.64964886]
[1749491498454,19.65612307,156.33,156.3,18.64964886]
[1749491499440,26.05289852,156.33,156.3,18.64964886]
[1749491501358,26.05252765,156.34,156.3,18.64964886]
[1749491502939,30.82773893,156.34,156.3,18.64964886]
[1749491503134,26.05252765,156.34,156.3,18.64964886]
[1749491503755,52.05212481,156.35,156.3,44.70367036]
[1749491503946,32.39600174,156.35,156.32,18.64964886]
[1749491504147,52.05212481,156.35,156.32,18.64964886]
[1749491504751,4.77701392,156.34,156.3,38.30577193]
[1749491504951,6.39672487,156.33,156.3,18.64964886]
[1749491505143,26.05284794,156.33,156.3,18.64964886]
[1749491507542,6.39631572,156.34,156.3,18.64964886]
[1749491507750,19.65612307,156.33,156.3,18.64964886]
[1749491510060,26.0529212,156.33,156.3,18.64964886]
[1749491510439,30.83060733,156.33,156.3,18.64964886]
[1749491510653,26.0529212,156.33,156.3,18.64964886]
[1749491510940,30.83060733,156.33,156.3,18.64964886]
[1749491511260,26.0529212,156.33,156.3,18.64964886]
[1749491513038,30.83079193,156.33,156.3,18.64964886]
[1749491513239,26.0529212,156.33,156.3,18.64964886]
[1749491513758,19.65612307,156.31,156.25,18.64964886]
[1749491513971,19.65612307,156.27,156.25,18.64964886]
[1749491514268,19.65612307,156.26,156.24,10.52]
[1749491514563,19.65612307,156.25,156.24,10.52]
[1749491516442,19.65612307,156.25,156.22,18.64964886]
[1749491516763,19.65612307,156.24,156.22,18.64964886]
[1749491516963,19.65612307,156.25,156.22,18.64964886]
[1749491517163,6.39991583,156.26,156.22,18.64964886]
[1749491517356,6.39877143,156.28,156.23,19.94044621]
[1749491517546,26.0548945,156.28,156.25,18.64964886]
[1749491519447,1.5152,156.32,156.25,19.65612307]
[1749491519659,28.23769993,156.34,156.25,19.65612307]
[1749491519660,11.17523971,156.31,156.28,18.64964886]
[1749491519856,6.39754334,156.31,156.28,18.64964886]
[1749491520362,30.83091879,156.31,156.27,18.64964886]
[1749491520561,30.83034812,156.32,156.28,18.64964886]
[1749491520871,19.65612307,156.31,156.28,18.64964886]
[1749491521683,11.17422505,156.32,156.28,18.64964886]
[1749491521966,19.65612307,156.31,156.28,18.64964886]
[1749491522150,30.83034812,156.32,156.28,18.64964886]
[1749491522356,26.05336293,156.32,156.29,18.64964886]
[1749491522862,19.65612307,156.31,156.29,18.64964886]
[1749491523663,19.65612307,156.3,156.29,18.64964886]
[1749491524647,26.05407572,156.3,156.29,18.64964886]
[1749491524946,6.39795265,156.3,156.29,18.64964886]
[1749491529453,26.05378805,156.31,156.29,18.64964886]
[1749491529658,6.39766498,156.31,156.28,18.64964886]
[1749491530257,6.3972944,156.32,156.28,38.30577193]
[1749491530568,11.1757202,156.32,156.28,38.30577193]
[1749491530770,30.83184327,156.32,156.28,78.04577193]
[1749491531271,26.05341747,156.32,156.28,78.04577193]
[1749491531679,30.83195072,156.32,156.28,58.38964886]
[1749491532264,26.05341747,156.32,156.28,58.38964886]
[1749491532572,30.83209672,156.32,156.28,58.38964886]
[1749491533376,32.39682393,156.33,156.28,94.94454227]
[1749491533575,19.65612307,156.33,156.3,18.64964886]
[1749491534158,19.65612307,156.32,156.3,18.64964886]
[1749491534577,24.43497418,156.32,156.3,18.64964886]
[1749491534786,19.65612307,156.32,156.3,18.64964886]
[1749491535470,26.05340429,156.32,156.3,18.64964886]
[1749491537272,30.83294769,156.32,156.3,18.64964886]
[1749491537461,26.05340429,156.32,156.3,18.64964886]
[1749491538457,26.05340429,156.32,156.28,50.24]
[1749491538658,26.05340429,156.32,156.29,18.64964886]
[1749491540467,19.65612307,156.31,156.29,18.64964886]
[1749491541281,26.05340429,156.32,156.29,18.64964886]
[1749491541720,6.39728122,156.32,156.29,18.64964886]
[1749491541991,26.05340429,156.32,156.29,18.64964886]
[1749491542302,6.39631572,156.34,156.29,38.30577193]
[1749491542504,32.39606221,156.35,156.32,18.64964886]
[1749491542888,52.05218528,156.35,156.32,18.64964886]
[1749491543394,19.65612307,156.34,156.32,18.64964886]
[1749491543569,19.65612307,156.33,156.31,39.68]
[1749491543884,30.83361524,156.32,156.3,18.64964886]
[1749491544070,19.65612307,156.31,156.3,18.64964886]
[1749491544665,24.43722923,156.31,156.3,18.64964886]
[1749491545088,4.78110616,156.31,156.3,18.64964886]
[1749491545272,24.43722923,156.31,156.28,10.5]
[1749491545476,19.65612307,156.29,156.28,10.5]
[1749491545678,24.43722923,156.29,156.28,10.5]
[1749491546086,30.83559124,156.29,156.28,10.5]
[1749491546291,26.05448508,156.29,156.28,10.5]
[1749491546701,30.83680335,156.29,156.28,10.5]
[1749491549867,24.43844134,156.29,156.28,10.5]
[1749491550280,4.78231827,156.29,156.28,10.5]
[1749491550483,26.0536953,156.31,156.29,18.64964886]
[1749491553076,19.65612307,156.31,156.29,18.64964886]
[1749491553674,19.65612307,156.3,156.29,18.64964886]
[1749491554099,26.05393563,156.31,156.29,18.64964886]
[1749491554501,4.7836176,156.3,156.29,18.64964886]
[1749491554697,26.05393563,156.31,156.29,18.64964886]
[1749491555892,4.78385185,156.3,156.29,18.64964886]
[1749491560903,19.65612307,156.3,156.29,18.64964886]
[1749491561413,24.44258369,156.3,156.29,18.64964886]
[1749491561594,24.44258369,156.3,156.28,50.12]
[1749491561788,30.8409457,156.29,156.28,68.76964886]
[1749491564714,30.8409457,156.29,156.28,58.26964886]
[1749491566319,24.44258369,156.29,156.28,58.26964886]
[1749491571005,30.8409457,156.29,156.28,58.26964886]
[1749491573203,24.44258369,156.29,156.28,18.64964886]
[1749491573400,24.44258369,156.29,156.24,45.65612307]
[1749491573401,30.8409457,156.29,156.27,18.64964886]
[1749491573706,24.44258369,156.28,156.25,58.08964886]
[1749491573901,19.65612307,156.26,156.25,58.10964886]
[1749491574101,19.65612307,156.26,156.25,18.64964886]
[1749491574314,19.65612307,156.26,156.25,58.10964886]
[1749491574895,24.44354678,156.26,156.25,58.10964886]
[1749491575603,19.65612307,156.26,156.25,58.10964886]
[1749491576308,24.44168267,156.26,156.25,58.10964886]
[1749491576617,19.65612307,156.26,156.25,58.10964886]
[1749491577008,19.65612307,156.26,156.25,58.08964886]
[1749491577417,26.05571349,156.26,156.25,58.08964886]
[1749491577624,30.83995534,156.26,156.24,49.8]
[1749491577923,19.65612307,156.25,156.24,68.44964886]
[1749491578108,19.65612307,156.25,156.24,10.36]
[1749491578308,19.65612307,156.25,156.24,29.00964886]
[1749491578511,30.83926188,156.25,156.24,29.00964886]
[1749491579315,30.83926188,156.25,156.24,10.36]
[1749491579514,30.83926188,156.25,156.23,39.44]
[1749491579714,19.65612307,156.24,156.23,18.64964886]
[1749491580028,26.05612307,156.25,156.23,18.64964886]
[1749491580329,19.65612307,156.25,156.23,18.64964886]
[1749491580922,19.65612307,156.24,156.23,18.64964886]
[1749491582512,24.43678335,156.24,156.23,18.64964886]
[1749491582734,19.65612307,156.24,156.23,18.64964886]
[1749491583234,26.05653269,156.24,156.23,18.64964886]
[1749491584908,26.05653269,156.24,156.22,18.64964886]
[1749491586808,19.65612307,156.23,156.22,18.64964886]
[1749491587623,19.65612307,156.23,156.21,18.64964886]
[1749491589213,6.40086404,156.23,156.21,18.64964886]
[1749491589413,15.99902963,156.26,156.21,18.64964886]
[1749491589414,24.43302111,156.25,156.21,18.64964886]
[1749491589614,19.65612307,156.25,156.21,44.70737895]
[1749491591537,26.05617397,156.25,156.21,38.30577193]
[1749491591723,4.77689804,156.27,156.24,18.64964886]
[1749491591925,26.05506693,156.28,156.24,58.08964886]
[1749491592126,30.83196497,156.28,156.24,58.08964886]
[1749491592328,19.65612307,156.27,156.24,58.08964886]
[1749491593139,19.65612307,156.26,156.24,58.08964886]
[1749491594841,26.05594391,156.26,156.24,58.08964886]
[1749491595221,19.65612307,156.25,156.24,58.08964886]
[1749491595422,19.65612307,156.25,156.23,18.64964886]
[1749491596325,11.17367998,156.26,156.23,18.64964886]
[1749491596528,19.65612307,156.25,156.23,18.64964886]
[1749491597041,6.40040962,156.24,156.23,18.64964886]
[1749491598516,26.05653269,156.24,156.23,18.64964886]
[1749491600231,6.40040962,156.24,156.23,18.64964886]
[1749491601547,18.98746562,156.25,156.23,18.64964886]
[1749491603743,12.58732465,156.24,156.23,18.64964886]
[1749491604158,12.58732465,156.24,156.22,18.64964886]
[1749491604751,12.58732465,156.23,156.21,18.64964886]
[1749491605055,12.58732465,156.22,156.21,18.64964886]
[1749491605454,18.98855368,156.22,156.21,18.64964886]
[1749491605658,18.98855368,156.22,156.2,10.36]
[1749491605950,12.58732465,156.21,156.2,10.36]
[1749491606742,18.98896346,156.21,156.2,10.36]
[1749491607256,26.08293741,156.21,156.17,18.64964886]
[1749491607445,26.08293741,156.21,156.17,58.08964886]
[1749491607948,26.08293741,156.21,156.17,18.64964886]
[1749491609752,19.6812986,156.18,156.17,18.64964886]
[1749491609958,19.6812986,156.19,156.17,18.64964886]
[1749491610282,19.6812986,156.18,156.17,18.64964886]
[1749491611327,6.4026846,156.19,156.17,18.64964886]
[1749491611528,26.0839832,156.19,156.17,18.64964886]
[1749491612162,19.6812986,156.18,156.16,10.3]
[1749491616150,19.6812986,156.19,156.17,18.64964886]
[1749491618551,19.6812986,156.18,156.17,18.64964886]
[1749491622336,6.40221909,156.2,156.17,18.64964886]
[1749491622538,11.16568267,156.22,156.17,44.73416665]
[1749491622840,19.6812986,156.21,156.17,38.33094746]
[1749491623044,19.6812986,156.2,156.17,18.64964886]
[1749491627155,19.6812986,156.2,156.17,25.05291043]
[1749491627355,18.99507483,156.21,156.17,25.05291043]
[1749491627667,12.59342957,156.21,156.17,25.05291043]
[1749491628467,12.59342957,156.21,156.17,37.64634]
[1749491629273,12.59342957,156.21,156.17,25.05291043]
[1749491630569,12.59342957,156.21,156.18,18.64964886]
[1749491631269,4.7657599,156.22,156.18,25.05250328]
[1749491631466,12.59342957,156.24,156.2,31.24307843]
[1749491631850,12.59342957,156.24,156.2,18.64964886]
[1749491632050,12.59342957,156.23,156.2,18.64964886]
[1749491632966,15.99892671,156.27,156.2,18.64964886]
[1749491632967,12.59342957,156.22,156.2,18.64964886]
[1749491634071,12.59342957,156.22,156.19,45.86241737]
[1749491634294,12.59342957,156.22,156.2,18.64964886]
[1749491636478,12.59342957,156.21,156.17,89.9]
[1749491636653,12.59342957,156.2,156.18,58.08964886]
[1749491637063,12.59342957,156.2,156.18,18.64964886]
[1749491637471,18.9955052,156.2,156.18,18.64964886]
[1749491637656,12.59342957,156.19,156.16,10.3]
[1749491637981,12.59342957,156.18,156.17,18.64964886]
[1749491638164,12.59342957,156.18,156.16,10.3]
[1749491638658,12.59342957,156.17,156.16,28.94964886]
[1749491639308,19.68634631,156.17,156.16,28.94964886]
[1749491641086,19.68634631,156.17,156.16,10.3]
[1749491641867,19.68634631,156.18,156.16,10.3]
[1749491642280,19.68634631,156.19,156.16,28.94964886]
[1749491642582,26.08885066,156.19,156.16,28.94964886]
[1749491642977,19.68634631,156.18,156.16,28.94964886]
[1749491645963,26.08885066,156.19,156.16,28.94964886]
[1749491646474,19.68634631,156.18,156.16,28.94964886]
[1749491648071,26.08924886,156.18,156.16,28.94964886]
[1749491648561,19.68634631,156.17,156.16,28.94964886]
[1749491649087,26.08962478,156.17,156.16,28.94964886]
[1749491649474,26.08962478,156.17,156.13,18.64964886]
[1749491649679,19.68634631,156.16,156.13,18.64964886]
[1749491650269,6.40327847,156.17,156.13,38.33599517]
[1749491650270,26.08962478,156.17,156.13,38.33599517]
[1749491650580,19.68634631,156.16,156.13,18.64964886]
[1749491650791,26.08962478,156.17,156.13,18.64964886]
[1749491651992,19.68634631,156.17,156.13,18.64964886]
[1749491653688,22.40733455,156.2,156.13,38.33599517]
[1749491653870,19.68634631,156.17,156.13,38.33599517]
[1749491654187,26.09002639,156.17,156.13,38.33599517]
[1749491656076,6.40409862,156.15,156.13,18.64964886]
[1749491657793,26.09022098,156.16,156.13,18.64964886]
[1749491657961,6.40387467,156.16,156.13,18.64964886]
[1749491659376,19.00521827,156.16,156.13,18.64964886]
[1749491663284,6.40387467,156.16,156.13,31.25099246]
[1749491664579,6.40315541,156.18,156.15,12.6013436]
[1749491664995,19.00449901,156.18,156.14,31.25099246]
[1749491665377,6.40315541,156.18,156.14,31.25099246]
[1749491668390,19.00397553,156.19,156.14,37.65535152]
[1749491668687,6.40263193,156.19,156.15,12.6013436]
[1749491669005,11.16847871,156.21,156.19,18.64964886]
[1749491669181,6.40163881,156.21,156.17,12.6013436]
[1749491669382,6.40163881,156.21,156.18,18.64964886]
[1749491671006,16.00099533,156.25,156.19,12.6013436]
[1749491671302,6.40008843,156.25,156.21,31.25099246]
[1749491671686,19.00143203,156.25,156.21,31.25099246]
[1749491672380,6.39971903,156.26,156.23,18.64964886]
[1749491672590,4.76827001,156.25,156.23,18.64964886]
[1749491672800,4.76827001,156.24,156.23,18.64964886]
[1749491675108,6.39935009,156.27,156.23,18.64964886]
[1749491675299,4.7672482,156.26,156.23,18.64964886]
[1749491675612,4.76578455,156.26,156.23,18.64964886]
[1749491676893,26.06402677,156.27,156.23,18.64964886]
[1749491677512,30.82735189,156.27,156.23,18.64964886]
[1749491677925,19.66467668,156.29,156.25,19.66467668]
[1749491678227,19.66467668,156.31,156.28,18.64964886]
[1749491678423,4.76440805,156.3,156.28,18.64964886]
[1749491679696,26.06233554,156.31,156.28,18.64964886]
[1749491679894,30.82674359,156.31,156.28,18.64964886]
[1749491680099,26.06233554,156.31,156.28,18.64964886]
[1749491680296,30.82674359,156.31,156.28,18.64964886]
[1749491680512,26.06233554,156.31,156.28,18.64964886]
[1749491680815,19.66467668,156.31,156.28,18.64964886]
[1749491681815,26.0622461,156.31,156.28,18.64964886]
[1749491682612,19.66467668,156.31,156.28,18.64964886]
[1749491682821,26.06195149,156.32,156.28,38.31432554]
[1749491682997,19.66467668,156.32,156.28,44.71301499]
[1749491683205,19.66467668,156.33,156.3,18.64964886]
[1749491684355,26.06110042,156.34,156.31,18.64964886]
[1749491685791,19.66467668,156.33,156.3,18.64964886]
[1749491688629,26.06159401,156.33,156.3,18.64964886]
[1749491696731,30.75427064,156.36,156.31,38.31432554]
[1749491696912,45.66467668,156.37,156.33,18.64964886]
[1749491697239,19.66467668,156.36,156.33,18.64964886]
[1749491698727,26.06039114,156.36,156.33,18.64964886]
[1749491699732,19.66467668,156.35,156.33,18.64964886]
[1749491699915,26.06039114,156.36,156.33,18.64964886]
[1749491701551,26.0,156.39,156.33,44.71089132]
[1749491701839,19.66467668,156.37,156.33,44.71089132]
[1749491702011,1.5501,156.4,156.33,44.71089132]
[1749491702012,19.66467668,156.38,156.35,18.64964886]
[1749491703547,26.05945247,156.38,156.35,18.64964886]
[1749491704354,52.05897375,156.39,156.36,18.64964886]
[1749491707146,19.66467668,156.37,156.34,18.64964886]
[1749491707450,26.05991026,156.37,156.34,18.64964886]
[1749491707648,19.66467668,156.37,156.34,18.64964886]
[1749491707850,26.05977413,156.37,156.34,18.64964886]
[1749491708240,6.39509745,156.37,156.34,38.31432554]
[1749491708556,19.66467668,156.39,156.34,38.31432554]
[1749491708754,26.05897757,156.39,156.34,38.31432554]
[1749491710627,26.05897757,156.39,156.34,44.71063795]
[1749491710833,26.05897757,156.39,156.34,38.31432554]
[1749491711031,19.66467668,156.38,156.34,44.71061586]
[1749491712039,19.66467668,156.38,156.34,38.31432554]
[1749491712237,26.05946171,156.38,156.34,38.31432554]
[1749491712451,19.66467668,156.37,156.34,18.64964886]
[1749491712753,19.66467668,156.35,156.33,10.28]
[1749491712952,6.39478503,156.38,156.33,28.92964886]
[1749491712953,19.66467668,156.34,156.33,28.92964886]
[1749491713131,19.66467668,156.35,156.33,28.92964886]
[1749491713554,19.66467668,156.36,156.33,28.92964886]
[1749491713959,19.66467668,156.35,156.33,28.92964886]
[1749491715463,26.06067133,156.35,156.33,28.92964886]
[1749491715836,19.66467668,156.34,156.33,10.28]
[1749491717142,6.39599465,156.35,156.33,10.28]
[1749491717342,19.66467668,156.35,156.33,10.28]
[1749491717667,26.06031992,156.36,156.33,10.28]
[1749491717869,19.66467668,156.35,156.33,10.28]
[1749491718049,19.66467668,156.34,156.33,28.92964886]
[1749491719268,4.75918049,156.36,156.34,18.64964886]
[1749491719438,19.66467668,156.36,156.34,18.64964886]
[1749491719762,19.66467668,156.35,156.34,18.64964886]
[1749491720162,19.66467668,156.35,156.33,10.28]
[1749491721162,26.06077926,156.35,156.33,10.28]
[1749491722479,19.66467668,156.41,156.35,0.14216157]
[1749491722759,19.66467668,156.41,156.37,38.31432554]
[1749491722960,24.43361959,156.41,156.37,38.31432554]
[1749491723345,6.39386189,156.4,156.37,38.31432554]
[1749491723941,30.82638721,156.41,156.37,38.31432554]
[1749491724156,26.05827103,156.41,156.37,38.31432554]
[1749491724370,52.05787231,156.42,156.37,38.31432554]